Workbook

Sheet 2021 nocenja
B2: UKUPAN BROJ TURISTA I NOĆENJA PO TIPU KAPACITETA U GRADU PULI
B3: ZA RAZDOBLJE 01.01. - 31.12.
C5: TURISTI | F5: NOĆENJA | I5: Prosječni dani boravka 2021. | J5: Prosječni dani boravka 2020.
B6: TIP KAPACITETA | C6: 2021. | D6: 2020. | E6: Indeks 21/20 | F6: 2021. | G6: 2020. | H6: Indeks 21/20
B8: Hotel | C8: 56202 | D8: 25802 | E8: =+C8/D8*100 -> 217.820324 | F8: 190514 | G8: 75616 | H8: =+F8/G8*100 -> 251.9493229 | I8: =F8/C8 -> 3.389808192 | J8: =G8/D8 -> 2.930625533
B9: Kamp | C9: 49918 | D9: 24250 | E9: 205.8474227 | F9: 275970 | G9: 146850 | H9: 187.9264556 | I9: =F9/C9 -> 5.528466685 | J9: 6.055670103
B10: Turistička naselja/apartmani | C10: 26339 | D10: 9257 | E10: 284.5306255 | F10: 170117 | G10: 58995 | H10: 288.3583355 | I10: 6.458749383 | J10: 6.373015016
B11: Ostali ugostiteljski objekti za odmor | C11: 26715 | D11: 14959 | E11: =+C11/D11*100 -> 178.5881409 | F11: 116109 | G11: 66401 | H11: =+F11/G11*100 -> 174.8603184 | I11: 4.346209994 | J11: 4.438866234
B12: Hostel | C12: 6167 | D12: 1268 | E12: 486.3564669 | F12: 18372 | G12: 3536 | H12: 519.5701357 | I12: 2.979082212 | J12: 2.788643533
B13: Objekti u domaćinstvu | C13: 116631 | D13: 70531 | E13: 165.3613305 | F13: 690475 | G13: 442730 | H13: 155.9584849 | I13: 5.920167022 | J13: 6.277098014
B14: Kuća/stan stanovnika općine/grada | C14: 2720 | D14: 1901 | E14: 143.0825881 | F14: 45879 | G14: 32807 | H14: 139.845155 | I14: 16.86727941 | J14: 17.25775907
B15: Kuća/Stan za odmor (vikendica) | C15: 1314 | D15: 1234 | E15: 106.4829822 | F15: 25407 | G15: 28972 | H15: 87.69501588 | I15: 19.33561644 | J15: 23.47811994
B16: Plovni objekti | C16: 18696 | D16: 11904 | E16: 157.0564516 | F16: 129722 | G16: 86251 | H16: 150.4005751 | I16: 6.938489516 | J16: 7.245547715
B17: Ukupno | C17: =SUM(C8:C16) -> 304702 | D17: =SUM(D8:D16) -> 161106 | E17: 189.1313793 | F17: =SUM(F8:F16) -> 1662565 | G17: =SUM(G8:G16) -> 942158 | H17: 176.4635019 | I17: 5.456363923 | J17: 5.848062766
B18: Izvor: Analitika TZ Pula, 2022. godine.
